bitfinex-derivatives/quotes_SOLF0:USTF0_20241017
["timestamp","ask_amount","ask_price","bid_price","bid_amount"]
[1729162714706,13.3886,152.54,152.51,3.34723591]
[1729162714906,13.3886,152.54,152.52,3.279]
[1729162715099,13.3886,152.54,152.52,6.53307489]
[1729162716709,3.2788,152.53,152.52,3.25407489]
[1729162717003,3.2788,152.53,152.49,10.11]
[1729162717204,3.2788,152.53,152.51,3.2792]
[1729162717412,3.2788,152.53,152.51,6.59035242]
[1729162718510,3.2787,152.54,152.51,6.59035242]
[1729162721208,291.43002,152.55,152.51,6.59035242]
[1729162721404,3.2788,152.53,152.51,6.59035242]
[1729162721605,3.2788,152.53,152.51,3.31115242]
[1729162721910,3.2788,152.53,152.5,3.2793]
[1729162722314,3.2788,152.53,152.5,6.56508099]
[1729162723710,294.70852,152.55,152.52,3.2788]
[1729162724008,301.54002,152.55,152.52,3.2788]
[1729162724411,304.81852,152.55,152.52,3.2788]
[1729162724914,301.54002,152.55,152.52,3.2788]
[1729162725209,3.2786,152.54,152.52,3.2788]
[1729162729917,3.2786,152.54,152.5,13.39578099]
[1729162730114,3.2786,152.54,152.51,3.2791]
[1729162730315,291.43002,152.55,152.51,3.2791]
[1729162730528,3.2787,152.54,152.51,3.2791]
[1729162731015,291.43002,152.55,152.5,13.39578099]
[1729162731215,294.70852,152.55,152.52,3.2789]
[1729162732516,294.70852,152.55,152.52,13.3889]
[1729162733420,291.43002,152.55,152.53,10.11]
[1729162735422,291.43002,152.55,152.54,3.2786]
[1729162738131,291.43002,152.55,152.54,13.3886]
[1729162738327,211.38002,152.55,152.54,13.3886]
[1729162738521,211.38002,152.55,152.54,15.02846887]
[1729162741726,131.33002,152.55,152.54,15.02846887]
[1729162744727,51.28002,152.55,152.54,15.02846887]
[1729162745428,51.28002,152.55,152.54,9.67846887]
[1729162745628,51.28002,152.55,152.54,19.78846887]
[1729162746131,51.28002,152.55,152.54,18.1486]
[1729162746326,51.28002,152.55,152.54,19.78853663]
[1729162748735,3.2776,152.59,152.56,3.278]
[1729162748923,3.2776,152.59,152.57,10.11]
[1729162749742,3.2776,152.59,152.56,13.388]
[1729162752131,3.2776,152.59,152.56,10.11]
[1729162752436,3.2775,152.6,152.57,3.2778]
[1729162752737,8.9319,152.63,152.59,3.2775]
[1729162752937,3.2771,152.61,152.59,3.2775]
[1729162753440,3.2771,152.61,152.6,3.30274511]
[1729162757438,3.277,152.62,152.6,3.30274511]
[1729162759033,3.277,152.62,152.6,6.58004511]
[1729162759233,3.277,152.62,152.6,3.30274511]
[1729162761962,3.277,152.62,152.6,6.58004511]
[1729162771042,3.2771,152.61,152.6,3.30274511]
[1729162772043,3.2774,152.6,152.57,3.2778]
[1729162772234,3.2774,152.6,152.57,3.27553369]
[1729162772438,3.2774,152.6,152.56,10.11]
[1729162773040,3.2774,152.6,152.56,13.46346099]
[1729162773452,10.11,152.59,152.56,3.35346099]
[1729162773642,11.5566,152.58,152.52,89.73573568]
[1729162773841,10.11,152.55,152.52,93.01804178]
[1729162774063,3.2787,152.54,152.52,93.01804178]
[1729162774554,3.2787,152.54,152.52,3.2823061]
[1729162774749,3.2787,152.54,152.51,3.2791]
[1729162775149,3.279,152.53,152.51,3.22525103]
[1729162775448,3.279,152.53,152.5,3.2794]
[1729162775947,3.279,152.53,152.5,6.59809338]
[1729162776253,10.11,152.52,152.48,3.2797]
[1729162776443,11.4584,152.52,152.48,3.2797]
[1729162776643,10.11,152.51,152.48,3.2797]
[1729162776843,13.3894,152.51,152.48,3.2797]
[1729162778049,10.11,152.51,152.47,4.76]
[1729162778249,1.3484,152.52,152.37,6.5642]
[1729162778250,10.11,152.5,152.45,6.40055179]
[1729162778456,10.11,152.5,152.44,14.87]
[1729162778953,3.2798,152.49,152.46,3.2802]
[1729162779343,10.11,152.49,152.46,3.2802]
[1729162779642,13.3898,152.49,152.46,3.2802]
[1729162780244,3.2801,152.47,152.42,4.76]
[1729162780441,10.11,152.48,152.42,14.87]
[1729162780645,3.2805,152.46,152.44,3.2807]
[1729162780843,10.11,152.48,152.44,6.4985579]
[1729162782048,3.2802,152.47,152.44,6.4985579]
[1729162782947,10.11,152.5,152.45,10.11]
[1729162783143,2.7878,152.52,152.47,10.11]
[1729162783144,7.5478,152.52,152.47,10.11]
[1729162783547,10.8269,152.52,152.49,3.2797]
[1729162784655,3.2792,152.51,152.49,3.2797]
[1729162785544,10.11,152.51,152.43,3.23763972]
[1729162785747,10.11,152.5,152.44,10.11]
[1729162785945,11.4928,152.5,152.44,13.34175354]
[1729162786146,3.2798,152.49,152.46,3.2803]
[1729162786349,10.11,152.48,152.44,13.34175354]
[1729162787048,10.11,152.48,152.46,3.2802]
[1729162787243,3.2797,152.49,152.46,3.2802]
[1729162798461,3.2797,152.49,152.47,3.2801]
[1729162800465,13.3899,152.48,152.44,3.23175354]
[1729162800659,10.11,152.47,152.43,4.76]
[1729162800859,10.11,152.48,152.43,14.87]
[1729162801054,3.2797,152.49,152.44,10.11]
[1729162801260,7.5478,152.52,152.46,10.11]
[1729162801461,3.2793,152.51,152.48,3.2798]
[1729162801663,17.6578,152.52,152.47,10.11]
[1729162801871,17.6578,152.52,152.49,10.11]
[1729162801872,1.3484,152.52,152.49,10.11]
[1729162802169,18.1488,152.54,152.51,3.2792]
[1729162802379,13.3888,152.54,152.51,6.60587228]
[1729162802575,10.11,152.54,152.51,3.2792]
[1729162802884,3.2788,152.53,152.51,3.2792]
[1729162803076,3.2788,152.53,152.51,6.60816903]
[1729162803297,3.2788,152.53,152.51,3.2792]
[1729162803678,13.3887,152.54,152.51,3.2792]
[1729162803978,13.3887,152.54,152.51,6.53434505]
[1729162804177,10.11,152.54,152.51,6.53434505]
[1729162804582,10.11,152.54,152.51,3.25514505]
[1729162804785,10.11,152.52,152.47,4.76]
[1729162804975,10.11,152.52,152.49,3.2796]
[1729162804976,13.3892,152.52,152.49,3.2796]
[1729162805171,10.11,152.52,152.47,4.76]
[1729162805493,10.11,152.52,152.48,10.11]
[1729162805784,3.2793,152.51,152.48,13.3897]
[1729162806278,10.11,152.54,152.49,10.11]
[1729162806979,10.11,152.54,152.51,3.2791]
[1729162806980,3.2788,152.53,152.51,3.2791]
[1729162807182,3.2788,152.53,152.52,3.24629993]
[1729162807385,14.87,152.55,152.5,10.11]
[1729162807681,14.87,152.55,152.52,3.2789]
[1729162807881,7.5515,152.58,152.53,3.35259616]
[1729162808078,10.11,152.57,152.55,3.2782]
[1729162808283,10.11,152.57,152.53,3.35259616]
[1729162809079,3.2783,152.56,152.53,3.35259616]
[1729162809279,3.2783,152.56,152.52,10.11]
[1729162809778,3.2783,152.56,152.52,13.31225375]
[1729162810585,10.11,152.56,152.52,3.20225375]
[1729162810887,3.2785,152.55,152.51,10.11]
[1729162811106,10.11,152.54,152.51,3.34755728]
[1729162811394,10.11,152.52,152.48,4.76]
[1729162811577,10.11,152.53,152.5,3.2793]
[1729162811974,13.3889,152.53,152.5,3.2793]
[1729162813380,10.11,152.53,152.49,10.11]
[1729162813588,10.11,152.52,152.48,10.11]
[1729162815396,3.2794,152.51,152.49,3.2796]
[1729162816982,10.11,152.51,152.48,3.2798]
[1729162817182,10.11,152.49,152.45,10.11]
[1729162817383,10.11,152.46,152.45,3.2805]
[1729162817593,10.11,152.46,152.42,10.11]
[1729162817892,10.11,152.45,152.42,4.76]
[1729162818390,2.7462,152.5,152.42,4.76]
[1729162818391,2.7462,152.5,152.44,3.2807]
[1729162818587,13.3903,152.47,152.42,14.87]
[1729162818791,13.3903,152.47,152.44,3.2806]
[1729162820087,10.11,152.45,152.4,74.13652049]
[1729162820396,10.11,152.45,152.41,14.87]
[1729162820692,10.11,152.46,152.42,10.11]
[1729162820879,10.11,152.46,152.43,3.2808]
[1729162820880,13.3904,152.46,152.43,3.2808]
[1729162821285,13.3902,152.47,152.44,3.2806]
[1729162821486,10.11,152.47,152.43,10.11]
[1729162821792,10.11,152.49,152.44,10.11]
[1729162822385,3.28,152.48,152.45,3.2804]
[1729162823698,10.11,152.49,152.46,3.2801]
[1729162825097,3.28,152.48,152.45,3.2805]
[1729162827792,10.11,152.47,152.45,3.2805]
[1729162828798,13.3901,152.47,152.45,3.2805]
[1729162829597,10.11,152.46,152.4,74.13652049]
[1729162829798,10.11,152.44,152.43,3.2809]
[1729162830390,13.3909,152.44,152.42,3.2811]
[1729162830891,10.11,152.44,152.42,6.61750674]
[1729162831089,3.281,152.43,152.41,3.2814]
[1729162831990,13.3909,152.44,152.41,3.2814]
[1729162832491,13.3909,152.44,152.4,8.05669543]
[1729162832794,13.3909,152.44,152.42,3.2811]
[1729162832993,10.11,152.45,152.41,10.11]
[1729162833193,4.76,152.47,152.4,8.05669543]
[1729162833194,14.87,152.47,152.42,10.11]
[1729162833587,14.87,152.47,152.4,8.05669543]
[1729162833588,1.4368,152.49,152.46,3.2803]
[1729162833796,2.7462,152.5,152.46,10.11]
[1729162833998,1.3514,152.5,152.47,10.11]
[1729162834219,10.11,152.52,152.49,10.11]
[1729162834220,4.76,152.52,152.49,10.11]
[1729162834499,10.11,152.54,152.49,13.43754681]
[1729162834500,3.279,152.53,152.49,13.43754681]
[1729162834912,3.279,152.53,152.5,3.2793]
[1729162835394,3.279,152.53,152.5,13.3893]
[1729162836100,16.2588,152.55,152.51,10.11]
[1729162836494,3.2786,152.54,152.51,13.3891]
[1729162836897,3.2786,152.54,152.51,16.68153711]
[1729162837890,3.2786,152.54,152.51,6.57153711]
[1729162838591,3.2786,152.54,152.51,3.29243711]
[1729162838794,3.2786,152.54,152.48,4.76]
[1729162839098,3.2786,152.54,152.48,7.97524999]
[1729162839494,3.2786,152.54,152.51,3.2792]
[1729162840202,3.279,152.53,152.48,7.97524999]
[1729162840394,6.1488,152.55,152.48,7.97524999]
[1729162840600,6.1488,152.55,152.49,15.75]
[1729162840801,9.4274,152.55,152.52,3.2789]
[1729162841204,3.2786,152.54,152.52,3.2789]
[1729162841398,3.2786,152.54,152.51,3.2791]
[1729162843898,3.2786,152.54,152.49,15.75]
[1729162844101,3.2786,152.54,152.52,3.2789]
[1729162845199,3.2786,152.54,152.51,3.2791]
[1729162847608,3.2786,152.54,152.52,3.2789]
[1729162849010,3.2785,152.55,152.52,3.2789]
[1729162849904,3.2785,152.55,152.53,3.2787]
[1729162851606,4.76,152.57,152.53,3.2787]
[1729162851607,3.2783,152.56,152.53,3.2787]
[1729162853412,4.76,152.57,152.53,3.2787]
[1729162853608,3.2784,152.55,152.53,3.2787]
[1729162857519,4.76,152.57,152.49,15.75]
[1729162857843,10.08,152.54,152.51,3.2792]
[1729162858613,13.3587,152.54,152.51,3.2792]
[1729162859312,13.3587,152.54,152.52,3.279]
[1729162859713,3.2787,152.54,152.52,3.279]
[1729162866214,3.279,152.53,152.5,3.2793]
[1729162866419,10.08,152.54,152.49,10.08]
[1729162867227,10.08,152.54,152.5,3.2793]
[1729162867228,3.279,152.53,152.5,3.2793]
[1729162867722,3.279,152.53,152.5,10.08]
[1729162867925,3.2785,152.55,152.52,10.08]
[1729162869320,3.2788,152.54,152.52,10.08]
[1729162870523,3.2788,152.54,152.51,3.2791]
[1729162870731,3.2788,152.54,152.51,13.3591]
[1729162874833,3.2788,152.54,152.52,3.279]
[1729162881734,10.08,152.56,152.51,10.08]
[1729162881946,3.2787,152.54,152.51,13.3591]
[1729162882541,3.2787,152.54,152.52,3.279]
[1729162884739,10.08,152.56,152.52,3.279]
[1729162884941,3.2784,152.55,152.52,3.279]
[1729162885140,10.08,152.56,152.52,3.279]
[1729162886236,3.2784,152.55,152.51,10.08]
[1729162886437,4.76,152.57,152.52,10.08]
[1729162886630,2.7978,152.59,152.53,10.08]
[1729162886831,3.2781,152.57,152.53,10.08]
[1729162887334,3.2781,152.57,152.54,3.2785]
[1729162888841,3.2782,152.56,152.54,3.2785]
[1729162891247,3.278,152.57,152.53,10.08]
[1729162892141,4.6775,152.59,152.55,10.08]
[1729162892345,6.1065,152.61,152.56,10.08]
[1729162892346,1.3465,152.61,152.56,10.08]
[1729162892540,10.08,152.62,152.58,3.2776]
[1729162893041,3.2771,152.61,152.58,3.2776]
[1729162893346,3.2771,152.61,152.59,3.24666251]
[1729162893545,13.357,152.62,152.59,6.52416251]
[1729162893753,10.08,152.62,152.57,10.08]
[1729162893949,10.08,152.62,152.57,13.43455665]
[1729162894552,4.76,152.63,152.58,13.3576]
[1729162894553,3.2771,152.61,152.58,13.3576]
[1729162894748,14.84,152.63,152.58,10.08]
[1729162894952,3.2771,152.62,152.58,13.3576]
[1729162895154,3.2771,152.62,152.58,13.39159576]
[1729162895447,1.4049,152.64,152.6,10.08]
[1729162895646,4.6814,152.64,152.61,3.277]
[1729162895843,1.4049,152.64,152.62,10.08]
[1729162896054,1.4049,152.64,152.62,13.3568]
[1729162896248,1.4049,152.64,152.62,10.08]
[1729162896452,14.84,152.66,152.62,10.08]
[1729162896748,3.2764,152.65,152.62,13.3568]
[1729162897144,10.08,152.66,152.62,10.08]
[1729162897338,3.2761,152.66,152.63,13.3565]
[1729162898149,3.2761,152.66,152.63,16.58559036]
[1729162898346,3.2759,152.67,152.64,13.3564]
[1729162899055,3.276,152.66,152.64,13.41772032]
[1729162899352,3.276,152.66,152.64,3.33772032]
[1729162900452,3.276,152.66,152.63,13.3566]
[1729162900851,3.276,152.66,152.63,16.62221009]
[1729162901356,13.356,152.66,152.63,3.26561009]
[1729162901554,10.08,152.66,152.62,13.3568]
[1729162901757,3.2762,152.65,152.62,13.3568]
[1729162901955,10.08,152.66,152.62,10.08]
[1729162902144,10.08,152.66,152.62,13.36199878]
[1729162902347,4.76,152.69,152.62,13.36199878]
[1729162902348,4.76,152.69,152.62,3.28199878]
[1729162902549,10.08,152.64,152.59,4.76]
[1729162902752,3.277,152.62,152.59,4.76]
[1729162902953,10.08,152.64,152.59,4.76]
[1729162903154,10.08,152.64,152.57,107.85467032]
[1729162903155,10.08,152.62,152.57,107.85467032]
[1729162903353,10.08,152.59,152.57,93.03467032]
[1729162903660,10.08,152.58,152.57,3.33564451]
[1729162903860,13.3579,152.58,152.55,4.74]
[1729162904044,3.2779,152.58,152.55,4.74]
[1729162904250,3.2779,152.58,152.55,8.0183]
[1729162904851,10.08,152.59,152.54,10.08]
[1729162905157,10.08,152.57,152.53,8.0187]
[1729162905558,3.2783,152.56,152.53,8.0187]
[1729162905953,10.08,152.57,152.53,8.0187]
[1729162906161,3.2782,152.56,152.53,8.0187]
[1729162906864,10.08,152.57,152.47,1.4006]
[1729162907057,13.3585,152.55,152.5,10.08]
[1729162907258,13.3585,152.55,152.5,13.34699645]
[1729162907754,10.08,152.55,152.5,13.34699645]
[1729162907962,10.08,152.54,152.5,3.26699645]
[1729162908152,10.08,152.54,152.48,14.84]
[1729162908654,3.2789,152.53,152.5,3.2795]
[1729162908868,3.2789,152.53,152.5,13.3595]
[1729162910357,4.1792,152.56,152.51,10.08]
[1729162910756,4.1792,152.56,152.52,10.08]
[1729162912060,4.1792,152.56,152.51,10.08]
[1729162912665,3.2786,152.55,152.52,3.2789]
[1729162914657,4.6587,152.56,152.53,3.2786]
[1729162915565,1.3805,152.56,152.52,10.08]
[1729162915862,10.08,152.58,152.53,10.08]
[1729162917061,8.0377,152.59,152.56,3.2782]
[1729162917258,8.0377,152.59,152.56,6.636361]
[1729162917563,8.0377,152.59,152.56,3.2782]
[1729162918062,8.0377,152.59,152.56,6.5461672]
[1729162918260,3.2778,152.58,152.56,6.5461672]
[1729162919760,8.0376,152.59,152.56,6.5461672]
[1729162920862,3.2776,152.59,152.56,6.5461672]
[1729162921063,3.2773,152.6,152.57,13.3578]
[1729162921772,3.2773,152.6,152.57,16.67125348]
[1729162923362,3.2774,152.6,152.57,16.67125348]
[1729162923664,10.08,152.58,152.53,11.71986905]
[1729162923862,3.2781,152.57,152.53,10.08]
[1729162924172,3.2781,152.57,152.54,3.2785]
[1729162924578,10.08,152.56,152.48,3.21525659]
[1729162924765,10.08,152.55,152.5,10.08]
[1729162925070,3.2788,152.54,152.51,3.2791]
[1729162925459,10.08,152.55,152.5,13.42865644]
[1729162925662,3.279,152.53,152.5,13.42865644]
[1729162926069,10.08,152.55,152.5,13.42865644]
[1729162926467,3.2787,152.54,152.51,3.2791]
[1729162927165,13.3585,152.55,152.52,3.2789]
[1729162927771,3.2786,152.54,152.52,3.2789]
[1729162928370,3.2786,152.54,152.51,3.2792]
[1729162928665,3.2789,152.53,152.5,13.42865644]
[1729162928872,3.2789,152.53,152.49,14.82]
[1729162929065,3.2789,152.53,152.49,18.02531597]
[1729162929265,3.2789,152.53,152.5,3.2794]
[1729162929673,3.2789,152.53,152.49,18.02531597]
[1729162929865,3.2789,152.53,152.51,3.2792]
[1729162931769,3.2791,152.52,152.5,3.2793]
[1729162932576,3.2791,152.52,152.5,6.57765744]
[1729162933074,3.2789,152.53,152.5,6.57765744]
[1729162933268,10.08,152.54,152.5,6.57775744]
[1729162933583,3.279,152.53,152.5,6.57775744]
[1729162935276,3.279,152.53,152.51,3.2792]
[1729162935972,3.279,152.53,152.51,6.6015055]
[1729162936170,14.75,152.55,152.52,3.2789]
[1729162936375,11.4715,152.55,152.5,10.08]
[1729162936577,11.4715,152.55,152.5,13.33637112]
[1729162937075,3.2786,152.54,152.51,3.2791]
[1729162938781,3.2786,152.54,152.52,3.279]
[1729162941883,13.3586,152.54,152.52,3.279]
[1729162942109,13.3586,152.54,152.5,3.25637112]
[1729162942110,3.2791,152.52,152.5,3.25637112]
[1729162942382,1.3915,152.55,152.47,4.74]
[1729162942383,10.08,152.51,152.47,4.74]
[1729162942586,10.08,152.51,152.47,14.82]
[1729162942780,10.08,152.53,152.48,10.08]
[1729162942973,1.3915,152.55,152.49,10.08]
[1729162942974,10.08,152.54,152.49,10.08]
[1729162943487,13.3587,152.54,152.49,10.08]
[1729162943687,10.08,152.54,152.49,13.40602374]
[1729162943888,10.08,152.54,152.52,3.2788]
[1729162944686,3.2787,152.54,152.52,3.2788]
[1729162950193,3.2787,152.54,152.5,10.08]
[1729162950496,11.4715,152.55,152.49,3.32602374]
[1729162950497,10.08,152.53,152.49,3.32602374]
[1729162950695,10.08,152.53,152.48,10.08]
[1729162950894,13.3587,152.54,152.52,3.279]
[1729162951695,13.3587,152.54,152.52,6.62809573]
[1729162951897,13.3587,152.54,152.52,3.34909573]
[1729162952097,13.3587,152.54,152.51,3.2792]
[1729162952297,13.3587,152.54,152.51,3.34909573]
[1729162952499,13.3587,152.54,152.51,3.2792]
[1729162952798,13.3587,152.54,152.51,3.20212786]
[1729162952997,10.08,152.54,152.5,10.08]
[1729162953198,10.08,152.54,152.52,3.2789]
[1729162953397,10.08,152.54,152.52,6.48693282]
[1729162954097,13.3586,152.54,152.52,6.48693282]
[1729162954494,10.08,152.54,152.52,6.48693282]
[1729162956098,3.2788,152.53,152.52,3.20803282]
[1729162956300,3.2788,152.53,152.51,3.2792]
[1729162956501,3.2788,152.53,152.51,6.59319403]
[1729162956696,3.2788,152.53,152.51,3.2792]
[1729162957417,3.2788,152.53,152.51,6.62140661]
[1729162957594,3.2792,152.51,152.49,3.2796]
[1729162957790,3.2792,152.51,152.49,3.26905194]
[1729162957996,3.2792,152.51,152.46,89.75781306]
[1729162958196,10.08,152.5,152.48,3.2797]
[1729162958500,13.3596,152.5,152.46,89.75781306]
[1729162958695,13.3596,152.5,152.47,3.2799]
[1729162959102,13.3597,152.49,152.48,3.31858303]
[1729162959296,10.08,152.49,152.46,93.03801306]
[1729162959694,4.74,152.53,152.46,93.03801306]
[1729162960005,10.08,152.47,152.45,3.2804]
[1729162960404,10.08,152.46,152.43,3.2809]
[1729162961210,3.2806,152.45,152.42,3.281]
[1729162963601,13.3605,152.46,152.43,3.2808]
[1729162964506,3.2806,152.45,152.42,3.281]
[1729162964705,10.08,152.45,152.4,3.29669543]
[1729162964910,4.1968,152.48,152.36,1.3901]
[1729162964911,13.3611,152.43,152.38,10.08]
[1729162965110,13.3611,152.43,152.4,3.2815]
[1729162965815,13.3611,152.43,152.38,13.29640534]
[1729162966002,13.3611,152.43,152.4,3.2814]
[1729162967814,13.3611,152.43,152.41,3.2814]
[1729162968604,3.2811,152.43,152.41,3.2814]
[1729162968809,10.08,152.44,152.43,3.281]
[1729162969108,14.82,152.47,152.43,3.281]
[1729162970510,3.2806,152.45,152.43,3.281]
[1729162977911,10.08,152.46,152.41,10.08]
[1729162978221,3.2807,152.45,152.42,3.2812]
[1729162978513,3.2807,152.45,152.42,6.56739359]
[1729162978724,3.2807,152.45,152.43,3.2809]
[1729162980626,10.08,152.46,152.41,13.44004432]
[1729162980824,10.08,152.42,152.41,3.36004432]
[1729162981013,10.08,152.42,152.37,14.82]
[1729162981207,13.3612,152.42,152.39,3.2816]
[1729162981418,13.3612,152.42,152.39,6.63475159]
[1729162981614,13.3612,152.42,152.37,14.82]
[1729162981820,13.3612,152.42,152.37,18.02676302]
[1729162982614,13.3612,152.42,152.39,3.2816]
[1729162983325,10.08,152.41,152.38,3.282]
[1729162983518,4.74,152.43,152.35,10.08]
[1729162983519,10.08,152.4,152.35,10.08]
[1729162983715,10.08,152.38,152.34,14.82]
[1729162983911,1.4346,152.4,152.35,3.2827]
[1729162984127,10.08,152.39,152.35,6.57195052]
[1729162984320,3.2821,152.38,152.36,3.2824]
[1729162986226,10.08,152.39,152.35,3.28925052]
[1729162986430,3.2822,152.38,152.35,3.2826]
[1729162986631,3.2822,152.38,152.35,6.57719877]
[1729162986814,14.82,152.39,152.35,3.2826]
[1729162987015,10.08,152.36,152.34,3.2828]
[1729162987217,10.08,152.35,152.31,144.98526268]
[1729162987830,10.08,152.35,152.31,140.24526268]
[1729162988020,10.08,152.35,152.33,3.283]
[1729162989628,13.3627,152.35,152.33,3.283]
[1729162990019,10.08,152.34,152.29,10.08]
[1729162990330,13.3629,152.34,152.29,10.08]
[1729162990921,13.3629,152.34,152.32,3.2832]
[1729162991126,10.08,152.35,152.31,10.08]
[1729162991434,3.2827,152.36,152.31,10.08]
[1729162992132,3.2827,152.36,152.32,3.2832]
[1729162992431,3.2827,152.36,152.31,10.08]
[1729162993131,3.2827,152.36,152.33,3.2829]
[1729162993329,3.2827,152.36,152.34,3.31243594]
[1729162994031,3.2827,152.36,152.33,3.2829]
[1729162994234,13.3627,152.36,152.33,3.2829]
[1729162996924,14.82,152.37,152.32,10.08]
[1729162997128,4.74,152.37,152.34,10.08]
[1729162997333,14.82,152.39,152.34,13.35160109]
[1729162997530,3.2821,152.38,152.35,3.2825]
[1729162998533,3.2821,152.38,152.34,13.35160109]
[1729162998737,3.2821,152.38,152.36,3.2825]
[1729162999833,13.3623,152.37,152.34,6.55430109]
[1729163000138,10.08,152.35,152.34,3.27160109]
[1729163000439,13.3627,152.35,152.33,3.283]
[1729163000731,10.08,152.34,152.33,3.283]
[1729163001136,10.08,152.35,152.3,10.08]
[1729163001338,10.08,152.36,152.31,10.08]
[1729163001531,10.08,152.37,152.32,10.08]
[1729163002131,13.3623,152.37,152.35,3.2826]
[1729163002336,13.3623,152.37,152.35,6.61780906]
[1729163002534,13.3623,152.37,152.35,3.2826]
[1729163003038,13.3623,152.37,152.35,6.56920597]
[1729163007243,18.102,152.39,152.36,3.2825]
[1729163007439,1.4346,152.4,152.36,10.08]
[1729163007840,1.4346,152.4,152.39,3.2818]
[1729163009038,30.74272513,152.67,152.39,3.2818]
[1729163009039,18.1008,152.44,152.41,3.2812]
[1729163009232,10.08,152.43,152.41,3.2812]
[1729163009439,3.2812,152.42,152.39,3.30664389]
[1729163009639,10.08,152.43,152.38,10.08]
[1729163009840,10.08,152.43,152.38,13.43326721]
[1729163010735,13.3611,152.43,152.4,3.2815]
[1729163011142,13.3611,152.43,152.38,13.43326721]
[1729163011343,13.3611,152.43,152.4,3.2814]
[1729163013645,4.74,152.44,152.4,10.08]
[1729163013946,10.08,152.43,152.39,10.08]
[1729163014146,10.08,152.42,152.38,13.43326721]
[1729163014340,10.08,152.42,152.38,10.08]
[1729163014544,13.3613,152.42,152.39,3.2817]
[1729163014749,13.3613,152.42,152.4,3.36014944]
[1729163015249,13.3613,152.42,152.4,3.2816]
[1729163015446,13.3613,152.42,152.4,6.61658483]
[1729163015650,13.3613,152.42,152.4,3.2816]
[1729163016154,13.3614,152.41,152.39,3.3385959]
[1729163017651,13.3614,152.41,152.39,6.6203959]
[1729163018751,3.2814,152.41,152.39,6.6203959]
[1729163023453,3.2814,152.41,152.39,3.3385959]
[1729163023654,10.08,152.4,152.39,3.3385959]
[1729163024550,10.08,152.4,152.39,3.2818]
[1729163024748,10.08,152.4,152.39,6.54489176]
[1729163027868,13.3616,152.4,152.39,3.26309176]
[1729163028177,10.08,152.4,152.34,4.74]
[1729163028359,13.3618,152.39,152.38,3.21483477]
[1729163028563,14.7544,152.39,152.38,3.21483477]
[1729163028958,11.4726,152.39,152.35,1.64163364]
[1729163029165,11.4726,152.39,152.35,6.5615639]
[1729163029166,13.3621,152.38,152.35,6.5615639]
[1729163029863,1.3926,152.39,152.35,3.2790639]
[1729163029864,10.08,152.36,152.35,3.2790639]
[1729163030068,10.08,152.36,152.32,89.84399281]
[1729163030258,4.1404,152.39,152.32,89.84399281]
[1729163030259,10.08,152.35,152.32,89.84399281]
[1729163030562,10.08,152.34,152.32,93.12719281]
[1729163031258,10.08,152.34,152.26,3.2773315]
[1729163031465,3.2831,152.33,152.3,3.2836]
[1729163031664,10.08,152.32,152.3,6.53713999]
[1729163033175,10.08,152.32,152.31,3.2835]
[1729163033856,3.2831,152.33,152.31,6.59516824]